fUST/lending_fUST_20240930
["ID","MTS","AMOUNT","RATE_DAILY","PERIOD"]
[339521910,1727675449580,-500.0,0.00014448,2]
[339521911,1727675449590,-500.0,0.00014448,2]
[339521912,1727675449601,-500.0,0.00014448,2]
[339521913,1727675449611,-500.0,0.00014448,2]
[339521914,1727675449621,-500.0,0.00014448,2]
[339521915,1727675449630,-500.0,0.00014448,2]
[339521916,1727675449640,-647.47,0.00014448,2]
[339521917,1727675449650,-500.0,0.00014448,2]
[339521918,1727675449660,-500.0,0.00014448,2]
[339521919,1727675449670,-500.0,0.00014448,2]
[339521920,1727675449681,-500.0,0.00014448,2]
[339521921,1727675449694,-557.83507188,0.00014448,2]
[339521922,1727675449704,-500.0,0.00014448,2]
[339521923,1727675449958,-1211.469912,0.00014448,2]
[339521924,1727675449968,-151.0,0.00014448,2]
[339521925,1727675449978,-500.0,0.00014448,2]
[339521926,1727675449988,-1211.469912,0.00014448,2]
[339521927,1727675449998,-500.0,0.00014448,2]
[339521928,1727675450007,-1211.469912,0.00014448,2]
[339521929,1727675450018,-500.0,0.00014448,2]
[339521930,1727675450028,-509.4766988,0.00014448,2]
[339521931,1727675450037,-589.84,0.00014448,2]
[339521932,1727675450048,-1211.469912,0.00014448,2]
[339521933,1727675450058,-151.0,0.00014448,2]
[339521934,1727675450067,-1211.469912,0.00014448,2]
[339521935,1727675450077,-1211.469912,0.00014448,2]
[339521936,1727675450087,-500.0,0.00014448,2]
[339521937,1727675450096,-500.0,0.00014448,2]
[339521938,1727675450105,-500.0,0.00014448,2]
[339521939,1727675450114,-815.03,0.00014448,2]
[339521940,1727675450124,-500.0,0.00014448,2]
[339521941,1727675450133,-1581.5,0.00014448,2]
[339521942,1727675450142,-500.0,0.00014448,2]
[339521943,1727675450152,-664.46,0.00014448,2]
[339521944,1727675450161,-980.592321,0.00014448,2]
[339521945,1727675450171,-500.0,0.00014448,2]
[339521946,1727675450180,-500.0,0.00014448,2]
[339521947,1727675450189,-500.0,0.00014448,2]
[339521948,1727675450199,-980.592321,0.00014448,2]
[339521949,1727675450209,-500.0,0.00014448,2]
[339521950,1727675450218,-500.0,0.00014448,2]
[339521951,1727675450227,-500.0,0.00014448,2]
[339521952,1727675450237,-500.0,0.00014448,2]
[339521953,1727675450247,-500.0,0.00014448,2]
[339521954,1727675450256,-876.3,0.00014448,2]
[339521955,1727675450265,-666.46,0.00014448,2]
[339521956,1727675450275,-500.0,0.00014448,2]
[339521957,1727675450284,-640.44,0.00014448,2]
[339521958,1727675450293,-151.0,0.00014448,2]
[339521959,1727675450302,-500.0,0.00014448,2]
[339521960,1727675450312,-500.0,0.00014448,2]
[339521961,1727675450321,-500.0,0.00014448,2]
[339521962,1727675450332,-500.0,0.00014448,2]
[339521963,1727675450342,-508.74684168,0.00014448,2]
[339521964,1727675450352,-672.32,0.00014448,2]
[339521965,1727675450361,-500.0,0.00014448,2]
[339521966,1727675450370,-500.0,0.00014448,2]
[339521967,1727675450378,-500.0,0.00014448,2]
[339521968,1727675450387,-500.0,0.00014448,2]
[339521969,1727675450396,-500.0,0.00014448,2]
[339521970,1727675450405,-549.9,0.00014448,2]
[339521971,1727675450415,-500.0,0.00014448,2]
[339521972,1727675450425,-500.0,0.00014448,2]
[339521973,1727675450435,-500.0,0.00014448,2]
[339521974,1727675450446,-500.0,0.00014448,2]
[339521975,1727675450456,-500.0,0.00014448,2]
[339521976,1727675450466,-500.0,0.00014448,2]
[339521977,1727675450476,-500.0,0.00014448,2]
[339521978,1727675450486,-500.0,0.00014448,2]
[339521979,1727675450496,-334.58764558,0.00014448,2]
[339521980,1727675450505,-500.0,0.00014448,2]
[339521981,1727675450515,-500.0,0.00014448,2]
[339521982,1727675450525,-474.79206015,0.00014448,2]
[339521983,1727675450535,-500.0,0.00014448,2]
[339521984,1727675450545,-500.0,0.00014448,2]
[339521985,1727675450555,-500.0,0.00014448,2]
[339521986,1727675450564,-500.0,0.00014448,2]
[339521987,1727675450574,-500.0,0.00014448,2]
[339521988,1727675450585,-500.0,0.00014448,2]
[339521989,1727675450596,-500.0,0.00014448,2]
[339521990,1727675450605,-986.47,0.00014448,2]
[339521991,1727675450615,-500.0,0.00014448,2]
[339521992,1727675450624,-500.0,0.00014448,2]
[339521993,1727675450634,-565.49,0.00014448,2]
[339521994,1727675450644,-500.0,0.00014448,2]
[339521995,1727675450653,-1135.602746,0.00014448,2]
[339521996,1727675450663,-500.0,0.00014448,2]
[339521997,1727675450672,-500.0,0.00014448,2]
[339521998,1727675450683,-500.0,0.00014448,2]
[339521999,1727675450693,-616.34,0.00014448,2]
[339522000,1727675450702,-1135.602746,0.00014448,2]
[339522001,1727675450712,-500.0,0.00014448,2]
[339522002,1727675450722,-500.0,0.00014448,2]
[339522003,1727675450732,-500.0,0.00014448,2]
[339522004,1727675450741,-500.0,0.00014448,2]
[339522005,1727675450750,-500.0,0.00014448,2]
[339522006,1727675450760,-909.28,0.00014448,2]
[339522007,1727675450770,-151.0,0.00014448,2]
[339522008,1727675450793,-151.0,0.00014448,2]
[339522009,1727675450803,-500.0,0.00014448,2]
[339522010,1727675450813,-151.0,0.00014448,2]
[339522011,1727675450822,-151.0,0.00014448,2]
[339522012,1727675450834,-500.0,0.00014448,2]
[339522013,1727675450843,-245.540847,0.00014448,2]
[339522014,1727675450854,-500.0,0.00014448,2]
[339522015,1727675450864,-500.0,0.00014448,2]
[339522016,1727675450874,-500.0,0.00014448,2]
[339522017,1727675450884,-500.0,0.00014448,2]
[339522018,1727675450895,-503.30225445,0.00014448,2]
[339522019,1727675450906,-638.57,0.00014448,2]
[339522020,1727675450916,-151.0,0.00014448,2]
[339522021,1727675450926,-500.0,0.00014448,2]
[339522022,1727675450936,-151.0,0.00014448,2]
[339522023,1727675450946,-151.0,0.00014448,2]
[339522024,1727675450956,-500.0,0.00014448,2]
[339522025,1727675450966,-151.0,0.00014448,2]
[339522026,1727675450976,-151.0,0.00014448,2]
[339522027,1727675450987,-153.518622,0.00014448,2]
[339522028,1727675450997,-151.0,0.00014448,2]
[339522029,1727675451007,-153.518622,0.00014448,2]
[339522030,1727675451016,-151.0,0.00014448,2]
[339522031,1727675451026,-151.0,0.00014448,2]
[339522032,1727675451036,-153.518622,0.00014448,2]
[339522033,1727675451046,-151.0,0.00014448,2]
[339522034,1727675451056,-500.0,0.00014448,2]
[339522035,1727675451066,-151.0,0.00014448,2]
[339522036,1727675451075,-153.518622,0.00014448,2]
[339522037,1727675451086,-153.518622,0.00014448,2]
[339522038,1727675451097,-500.0,0.00014448,2]
[339522039,1727675451107,-153.518622,0.00014448,2]
[339522040,1727675451117,-500.0,0.00014448,2]
[339522041,1727675451126,-500.0,0.00014448,2]
[339522042,1727675451136,-520.84,0.00014448,2]
[339522043,1727675451146,-500.0,0.00014448,2]
[339522044,1727675451155,-151.0,0.00014448,2]
[339522045,1727675451165,-500.0,0.00014448,2]
[339522046,1727675451175,-151.0,0.00014448,2]
[339522047,1727675451186,-500.0,0.00014448,2]
[339522048,1727675451196,-151.0,0.00014448,2]
[339522049,1727675451206,-500.0,0.00014448,2]
[339522050,1727675451216,-2500.0,0.00014448,2]
[339522051,1727675451226,-500.0,0.00014448,2]
[339522052,1727675451236,-182.251283,0.00014448,2]
[339522053,1727675451246,-182.251283,0.00014448,2]
[339522054,1727675451256,-182.251283,0.00014448,2]
[339522055,1727675451266,-182.251283,0.00014448,2]
[339522056,1727675451276,-512.63250005,0.00014448,2]
[339522057,1727675451286,-832.11,0.00014448,2]
[339522058,1727675451296,-151.0,0.00014448,2]
[339522059,1727675451305,-151.0,0.00014448,2]
[339522060,1727675451316,-182.251283,0.00014448,2]
[339522061,1727675451327,-151.0,0.00014448,2]
[339522062,1727675451337,-182.251283,0.00014448,2]
[339522063,1727675451347,-151.0,0.00014448,2]
[339522064,1727675451357,-182.251283,0.00014448,2]
[339522065,1727675451367,-182.251283,0.00014448,2]
[339522066,1727675451377,-500.0,0.00014448,2]
[339522067,1727675451387,-769.82,0.00014448,2]
[339522068,1727675451396,-769.82,0.00014448,2]
[339522069,1727675451406,-500.0,0.00014448,2]
[339522070,1727675451416,-500.0,0.00014448,2]
[339522071,1727675451426,-769.82,0.00014448,2]
[339522072,1727675451436,-769.82,0.00014448,2]
[339522073,1727675451445,-769.82,0.00014448,2]
[339522074,1727675451455,-435.60884987,0.00014448,2]
[339522075,1727675451465,-500.0,0.00014448,2]
[339522076,1727675451474,-500.0,0.00014448,2]
[339522077,1727675451484,-500.0,0.00014448,2]
[339522078,1727675451494,-500.0,0.00014448,2]
[339522079,1727675451503,-500.0,0.00014448,2]
[339522080,1727675451513,-500.0,0.00014448,2]
[339522081,1727675451523,-500.0,0.00014448,2]
[339522082,1727675451533,-500.0,0.00014448,2]
[339522083,1727675451542,-500.0,0.00014448,2]
[339522084,1727675451552,-808.079439,0.00014448,2]
[339522085,1727675451562,-541.35,0.00014448,2]
[339522086,1727675451571,-569.47,0.00014448,2]
[339522087,1727675451581,-808.079439,0.00014448,2]
[339522088,1727675451592,-808.079439,0.00014448,2]
[339522089,1727675451601,-500.0,0.00014448,2]
[339522090,1727675451611,-808.079439,0.00014448,2]
[339522091,1727675451620,-808.079439,0.00014448,2]
[339522092,1727675451630,-808.079439,0.00014448,2]
[339522093,1727675451639,-808.079439,0.00014448,2]
[339522094,1727675451649,-808.079439,0.00014448,2]
[339522095,1727675451659,-500.0,0.00014448,2]
[339522096,1727675451668,-500.0,0.00014448,2]
[339522097,1727675451679,-500.0,0.00014448,2]
[339522098,1727675451689,-2769.39,0.00014448,2]
[339522099,1727675451699,-615.99,0.00014448,2]
[339522100,1727675451709,-500.0,0.00014448,2]
[339522101,1727675451718,-500.0,0.00014448,2]
[339522102,1727675451728,-507.47,0.00014448,2]
[339522103,1727675451739,-500.0,0.00014448,2]
[339522104,1727675451749,-830.35,0.00014448,2]
[339522105,1727675451758,-1841.48,0.00014448,2]
[339522106,1727675451769,-500.0,0.00014448,2]
[339522107,1727675451780,-807.44,0.00014448,2]
[339522108,1727675451790,-500.0,0.00014448,2]
[339522109,1727675451800,-500.0,0.00014448,2]
[339522110,1727675451810,-500.0,0.00014448,2]
[339522111,1727675451819,-500.0,0.00014448,2]
[339522112,1727675451834,-500.0,0.00014448,2]
[339522113,1727675451844,-151.0,0.00014448,2]
[339522114,1727675451854,-151.0,0.00014448,2]
[339522115,1727675451864,-500.0,0.00014448,2]
[339522116,1727675451873,-988.58,0.00014448,2]
[339522117,1727675451883,-889.09,0.00014448,2]
[339522118,1727675451892,-500.0,0.00014448,2]
[339522119,1727675451902,-500.0,0.00014448,2]
[339522120,1727675451911,-500.0,0.00014448,2]
[339522121,1727675451921,-500.0,0.00014448,2]
[339522122,1727675451930,-500.0,0.00014448,2]
[339522123,1727675451940,-500.0,0.00014448,2]
[339522124,1727675451950,-151.394391,0.00014448,2]
[339522125,1727675451959,-500.0,0.00014448,2]
[339522126,1727675451969,-500.0,0.00014448,2]
[339522127,1727675451978,-500.0,0.00014448,2]
[339522128,1727675451988,-500.0,0.00014448,2]
[339522129,1727675451998,-500.0,0.00014448,2]
[339522130,1727675452007,-1523.04,0.00014448,2]
[339522131,1727675452017,-759.52,0.00014448,2]
[339522132,1727675452026,-500.0,0.00014448,2]
[339522133,1727675452036,-500.0,0.00014448,2]
[339522134,1727675452045,-532.80058367,0.00014448,2]
[339522135,1727675452054,-736.943965,0.00014448,2]
[339522136,1727675452064,-736.943965,0.00014448,2]
[339522137,1727675452073,-500.0,0.00014448,2]
[339522138,1727675452084,-500.0,0.00014448,2]
[339522139,1727675452093,-500.0,0.00014448,2]
[339522140,1727675452103,-573.56,0.00014448,2]
[339522141,1727675452113,-500.0,0.00014448,2]
[339522142,1727675452123,-736.943965,0.00014448,2]
[339522143,1727675452132,-736.943965,0.00014448,2]
[339522144,1727675452143,-629.770369,0.00014448,2]
[339522145,1727675452152,-629.770369,0.00014448,2]
[339522146,1727675452162,-629.770369,0.00014448,2]
[339522147,1727675452172,-505.70209235,0.00014448,2]
[339522148,1727675452182,-629.770369,0.00014448,2]
[339522149,1727675452192,-500.0,0.00014448,2]
[339522150,1727675452201,-500.0,0.00014448,2]
[339522151,1727675452211,-642.73,0.00014448,2]
[339522152,1727675452221,-500.0,0.00014448,2]
[339522153,1727675452230,-500.0,0.00014448,2]
[339522154,1727675452240,-500.0,0.00014448,2]
[339522155,1727675452249,-1406.265379,0.00014448,2]
[339522156,1727675452259,-1406.265379,0.00014448,2]
[339522157,1727675452268,-1406.265379,0.00014448,2]
[339522158,1727675452278,-500.0,0.00014448,2]
[339522159,1727675452287,-500.0,0.00014448,2]
[339522160,1727675452297,-500.0,0.00014448,2]
[339522161,1727675452307,-140.31319535,0.00014448,2]
[339522164,1727675530749,-2753.4848103,0.00014191,2]
[339522168,1727675626369,246.0,0.0002189,120]
[339522170,1727675763321,-253.30938144,0.00014174,2]
[339522171,1727675767887,-253.30938144,0.00014182,2]
[339522174,1727675885774,162.336992,0.00013699,2]
[339522175,1727675975673,1000.0,0.0001227,2]
[339522176,1727676057580,-1366.50796624,0.000142,2]
[339522178,1727676070354,517.5813057,0.00013272,2]
[339522179,1727676101745,697.1892113,0.00013272,2]
[339522180,1727676127998,-7069.19095078,0.00014174,2]
[339522181,1727676129262,150.0,0.00013978,2]
[339522182,1727676132013,-2409.29920896,0.00014172,2]
[339522183,1727676142003,157.237008,0.00013372,2]
[339522184,1727676142241,157.237008,0.00013413,2]
[339522185,1727676142692,157.237008,0.00013454,2]
[339522186,1727676142736,157.237008,0.00013495,2]
[339522187,1727676142923,157.237008,0.00013536,2]
[339522188,1727676143132,157.237008,0.00013577,2]
[339522189,1727676143344,157.237008,0.00013618,2]
[339522190,1727676143598,157.237008,0.00013659,2]
[339522191,1727676143825,157.237008,0.000137,2]
[339522192,1727676144047,157.237008,0.00013741,2]
[339522193,1727676144255,157.237008,0.00013782,2]
[339522194,1727676144475,157.237008,0.00013823,2]
[339522195,1727676144693,157.237008,0.00013863,2]
[339522196,1727676144901,157.237008,0.00013904,2]
[339522197,1727676145116,157.237008,0.00013945,2]
[339522198,1727676147039,157.237008,0.00013986,2]
[339522199,1727676147448,157.237008,0.00014027,2]
[339522200,1727676147661,157.237008,0.00014068,2]
[339522201,1727676261817,619.9141394,0.00013699,2]
[339522204,1727676538230,3000.0,0.00013252,2]
[339522220,1727676577781,5000.0,0.00014117,2]
[339522225,1727676593090,5000.0,0.00014117,2]
[339522229,1727676622925,7069.19095078,0.00013981,2]
[339522340,1727676640170,-1000.0,0.00014164,2]
[339522342,1727676640180,-1229.85716958,0.00014171,2]
[339522343,1727676640189,-300.0,0.00014249,2]
[339522346,1727676640203,-300.0,0.00014249,2]
[339522348,1727676640213,-500.0,0.00014249,2]
[339522350,1727676640223,-500.0,0.00014249,2]
[339522352,1727676640232,-500.0,0.00014249,2]
[339522354,1727676640243,-500.0,0.00014249,2]
[339522356,1727676640252,-465.31259842,0.00014249,2]
[339522358,1727676640261,-500.0,0.00014249,2]
[339522360,1727676640272,-500.0,0.00014249,2]
[339522362,1727676640282,-500.0,0.00014249,2]
[339522364,1727676640292,-500.0,0.00014249,2]
[339522366,1727676640303,-500.0,0.00014249,2]
[339522403,1727676640638,-500.0,0.00014249,2]
[339522405,1727676640648,-500.0,0.00014249,2]
[339522408,1727676640658,-500.0,0.00014249,2]
[339522410,1727676640668,-500.0,0.00014249,2]
[339522412,1727676640677,-500.0,0.00014249,2]
[339522414,1727676640687,-484.19320039,0.00014249,2]
[339522416,1727676640696,-500.0,0.00014249,2]
[339522418,1727676640706,-500.0,0.00014249,2]
[339522420,1727676640716,-500.0,0.00014249,2]
[339522422,1727676640726,-500.0,0.00014249,2]
[339522424,1727676640736,-225.16819245,0.00014249,2]
[339522426,1727676640745,-500.0,0.00014249,2]
[339522428,1727676640755,-500.0,0.00014249,2]
[339522430,1727676640764,-500.0,0.00014249,2]
[339522432,1727676640774,-500.0,0.00014249,2]
[339522434,1727676640784,-500.0,0.00014249,2]
[339522436,1727676640793,-500.0,0.00014249,2]
[339522438,1727676640804,-500.0,0.00014249,2]
[339522440,1727676640814,-500.0,0.00014249,2]
[339522442,1727676640823,-500.0,0.00014249,2]
[339522444,1727676640833,-500.0,0.00014249,2]
[339522446,1727676640842,-500.0,0.00014249,2]
[339522448,1727676640851,-500.0,0.00014249,2]
[339522450,1727676640861,-500.0,0.00014249,2]
[339522452,1727676640870,-500.0,0.00014249,2]
[339522454,1727676640880,-500.0,0.00014249,2]
[339522456,1727676640890,-500.0,0.00014249,2]
[339522458,1727676640899,-500.0,0.00014249,2]
[339522460,1727676640909,-500.0,0.00014249,2]
[339522462,1727676640918,-500.0,0.00014249,2]
[339522464,1727676640928,-500.0,0.00014249,2]
[339522466,1727676640938,-500.0,0.00014249,2]
[339522468,1727676640948,-500.0,0.00014249,2]
[339522470,1727676640958,-500.0,0.00014249,2]
[339522472,1727676640968,-500.0,0.00014249,2]
[339522474,1727676640979,-500.0,0.00014249,2]
[339522476,1727676640989,-500.0,0.00014249,2]
[339522478,1727676640999,-500.0,0.00014249,2]
[339522480,1727676641008,-500.0,0.00014249,2]
[339522482,1727676641018,-500.0,0.00014249,2]
[339522484,1727676641028,-872.19097281,0.0001425,2]
[339522486,1727676641037,-366.46558538,0.0001425,2]
[339522488,1727676641048,-167.56656825,0.0001425,2]
[339522490,1727676641057,-500.0,0.0001425,2]
[339522492,1727676641066,-417.4956026,0.0001425,2]
[339522494,1727676641076,-500.0,0.0001425,2]
[339522496,1727676641086,-500.0,0.0001425,2]
[339522498,1727676641096,-525.88515972,0.0001425,2]
[339522500,1727676641106,-68279.9263833,0.00014251,2]
[339522502,1727676641116,-78604.445855,0.00014251,2]
[339522504,1727676641126,-273119.705533,0.00014254,2]
[339522506,1727676641137,-393022.229275,0.00014254,2]
[339522508,1727676641147,-160.0,0.00014263,2]
[339522510,1727676641157,-1085.81,0.0001427,2]
[339522512,1727676641167,-503.11884782,0.0001427,2]
[339522514,1727676641177,-500.0,0.0001427,2]
[339522516,1727676641188,-500.0,0.0001427,2]
[339522518,1727676641198,-500.0,0.0001427,2]
[339522520,1727676641207,-500.0,0.0001427,2]
[339522522,1727676641217,-708.66,0.0001427,2]
[339522524,1727676641226,-30855.7,0.0001427,2]
[339522526,1727676641235,-500.0,0.0001427,2]
[339522528,1727676641244,-500.0,0.0001427,2]
[339522530,1727676641254,-500.0,0.0001427,2]
[339522532,1727676641263,-500.0,0.0001427,2]
[339522534,1727676641272,-4697.05,0.0001427,2]
[339522536,1727676641281,-500.0,0.0001427,2]
[339522538,1727676641290,-500.0,0.0001427,2]
[339522540,1727676641301,-1017.16,0.0001427,2]
[339522542,1727676641314,-500.0,0.0001427,2]
[339522544,1727676641326,-1278.26,0.0001427,2]
[339522546,1727676641336,-708.13,0.0001427,2]
[339522548,1727676641345,-536.27154334,0.0001427,2]
[339522550,1727676641356,-500.0,0.0001427,2]
[339522552,1727676641366,-500.0,0.0001427,2]
[339522554,1727676641376,-500.0,0.0001427,2]
[339522556,1727676641387,-500.0,0.0001427,2]
[339522558,1727676641397,-500.0,0.0001427,2]
[339522560,1727676641406,-500.0,0.0001427,2]
[339522563,1727676641416,-500.0,0.0001427,2]
[339522565,1727676641426,-731.01,0.0001427,2]
[339522567,1727676641435,-500.0,0.0001427,2]
[339522570,1727676641455,-586.6,0.0001427,2]
[339522572,1727676641466,-666.8,0.0001427,2]
[339522574,1727676641476,-500.0,0.0001427,2]
[339522576,1727676641486,-720.74,0.0001427,2]
[339522578,1727676641495,-500.0,0.0001427,2]
[339522580,1727676641505,-500.0,0.0001427,2]
[339522582,1727676641516,-672.32,0.0001427,2]
[339522584,1727676641526,-500.0,0.0001427,2]
[339522586,1727676641536,-500.0,0.0001427,2]
[339522589,1727676641549,-500.0,0.0001427,2]
[339522591,1727676641559,-500.0,0.0001427,2]
[339522593,1727676641568,-500.0,0.0001427,2]
[339522595,1727676641578,-500.0,0.0001427,2]
[339522597,1727676641588,-500.0,0.0001427,2]
[339522599,1727676641598,-500.0,0.0001427,2]
[339522601,1727676641608,-653.83,0.0001427,2]
[339522603,1727676641617,-1520.4,0.0001427,2]
[339522605,1727676641627,-500.0,0.0001427,2]
[339522607,1727676641637,-500.0,0.0001427,2]
[339522609,1727676641647,-1061.16,0.0001427,2]
[339522611,1727676641657,-500.0,0.0001427,2]
[339522613,1727676641667,-3977.0,0.0001427,2]
[339522615,1727676641678,-647.0,0.0001427,2]
[339522617,1727676641688,-500.0,0.0001427,2]
[339522619,1727676641697,-500.0,0.0001427,2]
[339522621,1727676641707,-500.0,0.0001427,2]
[339522624,1727676641717,-1152.77,0.0001427,2]
[339522626,1727676641727,-500.0,0.0001427,2]
[339522628,1727676641737,-500.0,0.0001427,2]
[339522630,1727676641747,-2296.63,0.0001427,2]
[339522632,1727676641756,-674.09,0.0001427,2]
[339522634,1727676641766,-500.0,0.0001427,2]
[339522636,1727676641775,-500.0,0.0001427,2]
[339522638,1727676641785,-1981.63,0.0001427,2]
[339522640,1727676641798,-541.31,0.0001427,2]
[339522642,1727676641817,-500.0,0.00014271,2]
[339522644,1727676641827,-500.0,0.00014271,2]
[339522646,1727676641837,-500.0,0.00014271,2]
[339522648,1727676641847,-500.0,0.00014271,2]
[339522651,1727676641858,-500.0,0.00014271,2]
[339522653,1727676641868,-500.0,0.00014271,2]
[339522655,1727676641877,-500.0,0.00014271,2]
[339522657,1727676641888,-500.0,0.00014271,2]
[339522659,1727676641898,-517.92,0.00014271,2]
[339522661,1727676641908,-803.39,0.00014271,2]
[339522663,1727676641918,-500.0,0.00014271,2]
[339522665,1727676641928,-500.0,0.00014271,2]
[339522667,1727676641938,-500.0,0.00014271,2]
[339522669,1727676641949,-500.0,0.00014271,2]
[339522671,1727676641959,-500.0,0.00014271,2]
[339522673,1727676641969,-500.0,0.00014271,2]
[339522675,1727676641980,-500.0,0.00014271,2]
[339522677,1727676641991,-500.0,0.00014271,2]
[339522679,1727676642000,-500.0,0.00014271,2]
[339522681,1727676642011,-857.93,0.00014271,2]
[339522683,1727676642021,-500.0,0.00014271,2]
[339522685,1727676642031,-150.0,0.00014271,2]
[339522687,1727676642041,-500.0,0.00014271,2]
[339522690,1727676642053,-500.0,0.00014271,2]
[339522692,1727676642063,-500.0,0.00014271,2]
[339522694,1727676642073,-603.98,0.00014271,2]
[339522696,1727676642083,-500.0,0.00014271,2]
[339522698,1727676642092,-500.0,0.00014271,2]
[339522700,1727676642101,-500.0,0.00014271,2]
[339522702,1727676642111,-1290.48,0.00014271,2]
[339522704,1727676642121,-500.0,0.00014271,2]
[339522706,1727676642136,-500.0,0.00014271,2]
[339522708,1727676642146,-500.0,0.00014271,2]
[339522710,1727676642156,-500.0,0.00014271,2]
[339522712,1727676642166,-500.0,0.00014271,2]
[339522714,1727676642176,-500.0,0.00014271,2]
[339522716,1727676642186,-500.0,0.00014271,2]
[339522718,1727676642196,-558.5913409,0.00014271,2]
[339522720,1727676642205,-500.0,0.00014271,2]
[339522723,1727676642215,-500.0,0.00014271,2]
[339522725,1727676642225,-629.53,0.00014271,2]
[339522727,1727676642235,-500.0,0.00014271,2]
[339522729,1727676642245,-500.0,0.00014271,2]
[339522731,1727676642255,-500.0,0.00014271,2]
[339522733,1727676642265,-953.75,0.00014271,2]
[339522735,1727676642274,-519.13392717,0.00014271,2]
[339522737,1727676642284,-1109.03,0.00014271,2]
[339522739,1727676642294,-542.86,0.00014271,2]
[339522741,1727676642305,-671.8,0.00014271,2]
[339522743,1727676642319,-500.0,0.00014271,2]
[339522745,1727676642332,-500.0,0.00014271,2]
[339522747,1727676642343,-500.0,0.00014271,2]
[339522749,1727676642354,-500.0,0.00014271,2]
[339522751,1727676642364,-500.0,0.00014271,2]
[339522753,1727676642373,-500.0,0.00014271,2]
[339522755,1727676642383,-500.91369879,0.00014271,2]
[339522757,1727676642394,-736.68,0.00014271,2]
[339522759,1727676642405,-500.0,0.00014271,2]
[339522761,1727676642414,-500.0,0.00014271,2]
[339522763,1727676642424,-500.0,0.00014271,2]
[339522765,1727676642434,-500.0,0.00014271,2]
[339522767,1727676642444,-500.0,0.00014271,2]
[339522770,1727676642454,-500.0,0.00014271,2]
[339522772,1727676642464,-500.0,0.00014271,2]
[339522774,1727676642473,-500.0,0.00014271,2]
[339522776,1727676642482,-500.0,0.00014271,2]
[339522778,1727676642492,-500.0,0.00014271,2]
[339522780,1727676642502,-500.0,0.00014271,2]
[339522782,1727676642511,-265.80632412,0.00014271,2]
[339522784,1727676642522,-500.0,0.00014271,2]
[339522786,1727676642531,-698.13,0.00014271,2]
[339522788,1727676642540,-500.0,0.00014271,2]
[339522790,1727676642550,-500.0,0.00014271,2]
[339522792,1727676642560,-500.0,0.00014271,2]
[339522794,1727676642570,-500.0,0.00014271,2]
[339522796,1727676642579,-500.0,0.00014271,2]
[339522798,1727676642589,-500.0,0.00014271,2]
[339522800,1727676642598,-500.0,0.00014271,2]
[339522802,1727676642608,-454.71425714,0.00014271,2]
[339522805,1727676642618,-500.0,0.00014271,2]
[339522807,1727676642627,-553.37,0.00014271,2]
[339522810,1727676642637,-500.0,0.00014271,2]